Workbook

Sheet 체온 코드
A1: 체온 | B1: x10 | C1: QR code | E1: 체온 | F1: x10 | G1: QR code | I1: 체온 | J1: x10 | K1: QR code | M1: 체온 | N1: x10 | O1: QR code | Q1: 체온 | R1: x10 | S1: QR code
A2: 35 | B2: =A2*10 -> 350 | C2: =Qrcode(B2) ->  | E2: 36 | F2: =E2*10 -> 360 | G2: =Qrcode(F2) ->  | I2: 37 | J2: =I2*10 -> 370 | K2: =Qrcode(J2) ->  | M2: 38 | N2: =M2*10 -> 380 | O2: =Qrcode(N2) ->  | Q2: 39 | R2: =Q2*10 -> 390 | S2: =Qrcode(R2) -> 
A4: 35.1 | B4: =A4*10 -> 351 | C4: =Qrcode(B4) ->  | E4: 36.1 | F4: =E4*10 -> 361 | G4: =Qrcode(F4) ->  | I4: 37.1 | J4: =I4*10 -> 371 | K4: =Qrcode(J4) ->  | M4: 38.1 | N4: 381 | O4: =Qrcode(N4) ->  | Q4: 39.1 | R4: 391 | S4: =Qrcode(R4) -> 
A6: 35.2 | B6: =A6*10 -> 352 | C6: =Qrcode(B6) ->  | E6: 36.2 | F6: =E6*10 -> 362 | G6: =Qrcode(F6) ->  | I6: 37.2 | J6: =I6*10 -> 372 | K6: =Qrcode(J6) ->  | M6: 38.2 | N6: =M6*10 -> 382 | O6: =Qrcode(N6) ->  | Q6: 39.2 | R6: =Q6*10 -> 392 | S6: =Qrcode(R6) -> 
A8: 35.3 | B8: =A8*10 -> 353 | C8: =Qrcode(B8) ->  | E8: 36.3 | F8: =E8*10 -> 363 | G8: =Qrcode(F8) ->  | I8: 37.3 | J8: =I8*10 -> 373 | K8: =Qrcode(J8) ->  | M8: 38.3 | N8: =M8*10 -> 383 | O8: =Qrcode(N8) ->  | Q8: 39.3 | R8: =Q8*10 -> 393 | S8: =Qrcode(R8) -> 
A10: 35.4 | B10: =A10*10 -> 354 | C10: =Qrcode(B10) ->  | E10: 36.4 | F10: =E10*10 -> 364 | G10: =Qrcode(F10) ->  | I10: 37.4 | J10: =I10*10 -> 374 | K10: =Qrcode(J10) ->  | M10: 38.4 | N10: =M10*10 -> 384 | O10: =Qrcode(N10) ->  | Q10: 39.4 | R10: =Q10*10 -> 394 | S10: =Qrcode(R10) -> 
A12: 35.5 | B12: =A12*10 -> 355 | C12: =Qrcode(B12) ->  | E12: 36.5 | F12: =E12*10 -> 365 | G12: =Qrcode(F12) ->  | I12: 37.5 | J12: =I12*10 -> 375 | K12: =Qrcode(J12) ->  | M12: 38.5 | N12: =M12*10 -> 385 | O12: =Qrcode(N12) ->  | Q12: 39.5 | R12: =Q12*10 -> 395 | S12: =Qrcode(R12) -> 
A14: 35.6 | B14: =A14*10 -> 356 | C14: =Qrcode(B14) ->  | E14: 36.6 | F14: =E14*10 -> 366 | G14: =Qrcode(F14) ->  | I14: 37.6 | J14: =I14*10 -> 376 | K14: =Qrcode(J14) ->  | M14: 38.6 | N14: =M14*10 -> 386 | O14: =Qrcode(N14) ->  | Q14: 39.6 | R14: =Q14*10 -> 396 | S14: =Qrcode(R14) -> 
A16: 35.7 | B16: =A16*10 -> 357 | C16: =Qrcode(B16) ->  | E16: 36.7 | F16: =E16*10 -> 367 | G16: =Qrcode(F16) ->  | I16: 37.7 | J16: =I16*10 -> 377 | K16: =Qrcode(J16) ->  | M16: 38.7 | N16: =M16*10 -> 387 | O16: =Qrcode(N16) ->  | Q16: 39.7 | R16: =Q16*10 -> 397 | S16: =Qrcode(R16) -> 
A18: 35.8 | B18: =A18*10 -> 358 | C18: =Qrcode(B18) ->  | E18: 36.8 | F18: =E18*10 -> 368 | G18: =Qrcode(F18) ->  | I18: 37.8 | J18: =I18*10 -> 378 | K18: =Qrcode(J18) ->  | M18: 38.8 | N18: =M18*10 -> 388 | O18: =Qrcode(N18) ->  | Q18: 39.8 | R18: =Q18*10 -> 398 | S18: =Qrcode(R18) -> 
A20: 35.9 | B20: =A20*10 -> 359 | C20: =Qrcode(B20) ->  | E20: 36.9 | F20: =E20*10 -> 369 | G20: =Qrcode(F20) ->  | I20: 37.9 | J20: =I20*10 -> 379 | K20: =Qrcode(J20) ->  | M20: 38.9 | N20: =M20*10 -> 389 | O20: =Qrcode(N20) ->  | Q20: 39.9 | R20: =Q20*10 -> 399 | S20: =Qrcode(R20) -> 

Sheet 회원 배포용 QR 코드
A1: 연번 | B1: 회원번호 | C1: 성명 | D1: QR Code | F1: 연번 | G1: 회원번호 | H1: 성명 | I1: QR Code
A2: 1 | B2: 2010-12345 | C2: 홍길동 | D2: =IF(B2="","",Qrcode(B2)) ->  | F2: 17 | I2: =IF(G2="","",Qrcode(G2)) -> 
A3: 2 | B3: 2010-12346 | C3: 강감찬 | F3: 18
A4: 3 | B4: 2010-12347 | C4: 을지문덕 | F4: 19
A5: 4 | B5: 2010-12348 | C5: 이순신 | F5: 20
A6: 5 | B6: 2011-98765 | C6: 이순신2 | F6: 21
A7: 6 | B7: 2011-98766 | C7: 권율 | F7: 22
A8: 7 | B8: 2011-98767 | C8: 최영 | F8: 23
A9: 8 | B9: 2011-98768 | C9: 연개소문 | F9: 24
A10: 9 | B10: 2011-98769 | C10: 계백 | F10: 25
A11: 10 | B11: 2011-98770 | C11: 임영웅 | F11: 26
A12: 11 | B12: 2015-78901 | C12: 영탁 | F12: 27
A13: 12 | B13: 2015-78902 | C13: 이찬원 | F13: 28
A14: 13 | B14: 2015-78903 | C14: 정동원 | F14: 29
A15: 14 | B15: 2015-78904 | C15: 김호중 | F15: 30
A16: 15 | F16: 31
A17: 16 | F17: 32

Sheet 출처 Barcodes
B2: 2D Barcode Generator | C2: Message to encode: | D2: http://members.chello.at/easyfilter/barcode.html
B3: Aztec | C3: QRCode | D3: DataMatrix
B4: =Aztec(D2) ->  | C4: =Qrcode(D2) ->  | D4: =datamatrix(D2) -> 
B5: Code 128
B6: =Code128(LEFT(D2,20)) -> 
B8: This Excel-workbook creates 2D barcodes as shape in cells by VBA macros. Just insert the user functions 'DataMatrix(), QRCode(), Aztec() or Code128()'
B9: The smallest bar code symbol fitting the data is automatically selected, but no size optimization for mixed data types in one barcode is done.
B10: All barcode shapes of the sheet could be manually redrawn by pressing [ctrl+Q]. The link between data and shape may be lost during work. Force a manual redrawing in that case.
B11: The drawing of the shapes takes some time, especially of large barcodes. For performance reason the barcode is only updated when the text changes.
B12: The title of the shape is the text of the barcode. The alternativeText of the shape contains some information of about the created barcode.
